fUSD/lending_fUSD_20240214
["ID","MTS","AMOUNT","RATE_DAILY","PERIOD"]
[314043848,1707945077043,-500.0,0.00038082,7]
[314043849,1707945077052,-500.0,0.00038082,7]
[314043850,1707945077062,-1047.58,0.00038082,7]
[314043851,1707945077071,-681.83,0.00038082,7]
[314043852,1707945077080,-515.63,0.00038082,7]
[314043853,1707945077089,-500.0,0.00038082,7]
[314043854,1707945077098,-1810.87,0.00038082,7]
[314043855,1707945077107,-805.31,0.00038082,7]
[314043856,1707945077118,-603.11,0.00038082,7]
[314043857,1707945077127,-500.0,0.00038082,7]
[314043858,1707945077138,-566.85069337,0.00038082,7]
[314043859,1707945077301,-500.0,0.00038082,7]
[314043860,1707945077311,-513.07,0.00038082,7]
[314043861,1707945077321,-500.0,0.00038082,7]
[314043862,1707945077330,-500.0,0.00038082,7]
[314043863,1707945077340,-573.7258016,0.00038082,7]
[314043864,1707945077349,-780.8,0.00038082,7]
[314043865,1707945077358,-841.02,0.00038082,7]
[314043866,1707945077368,-662.19,0.00038082,7]
[314043867,1707945077378,-1486.64,0.00038082,7]
[314043868,1707945077387,-2858.66,0.00038082,7]
[314043869,1707945077397,-500.0,0.00038082,7]
[314043870,1707945077407,-2047.91,0.00038082,7]
[314043871,1707945077417,-590.33,0.00038082,7]
[314043872,1707945077426,-786.93,0.00038082,7]
[314043873,1707945077436,-500.0,0.00038082,7]
[314043874,1707945077445,-577.68,0.00038082,7]
[314043875,1707945077456,-3628.12,0.00038082,7]
[314043876,1707945077465,-4757.12,0.00038082,7]
[314043877,1707945077475,-598.4,0.00038082,7]
[314043878,1707945077484,-1991.03,0.00038082,7]
[314043879,1707945077494,-612.33,0.00038082,2]
[314043880,1707945077503,-500.0,0.00038082,7]
[314043881,1707945077513,-500.0,0.00038082,7]
[314043882,1707945077522,-617.82,0.00038082,7]
[314043883,1707945077532,-502.43,0.00038082,7]
[314043884,1707945077541,-2139.36,0.00038082,7]
[314043885,1707945077550,-807.41,0.00038082,7]
[314043886,1707945077559,-685.44,0.00038082,7]
[314043887,1707945077568,-500.0,0.00038082,7]
[314043888,1707945077577,-500.0,0.00038082,7]
[314043889,1707945077586,-730.2,0.00038082,7]
[314043890,1707945077596,-2211.07,0.00038082,7]
[314043891,1707945077605,-500.0,0.00038082,7]
[314043892,1707945077614,-711.33,0.00038082,7]
[314043893,1707945077623,-743.99,0.00038082,7]
[314043894,1707945077632,-2294.91,0.00038082,7]
[314043895,1707945077642,-2043.37,0.00038082,7]
[314043896,1707945077652,-500.0,0.00038082,7]
[314043897,1707945077661,-594.55,0.00038082,7]
[314043898,1707945077671,-6637.56,0.00038082,7]
[314043899,1707945077680,-500.0,0.00038082,7]
[314043900,1707945077690,-500.0,0.00038082,7]
[314043901,1707945077699,-500.0,0.00038082,7]
[314043902,1707945077709,-1343.45,0.00038082,7]
[314043903,1707945077718,-1215.55,0.00038082,7]
[314043904,1707945077727,-595.97,0.00038082,7]
[314043905,1707945077736,-500.0,0.00038082,7]
[314043906,1707945077745,-1831.02,0.00038082,7]
[314043907,1707945077754,-1575.34,0.00038082,7]
[314043908,1707945077764,-1240.3,0.00038082,7]
[314043909,1707945077773,-1949.84,0.00038082,7]
[314043910,1707945077782,-500.0,0.00038082,7]
[314043911,1707945077792,-500.0,0.00038082,7]
[314043912,1707945077801,-500.0,0.00038082,7]
[314043913,1707945077811,-1376.91,0.00038082,7]
[314043914,1707945077821,-1838.93,0.00038082,7]
[314043915,1707945077830,-1020.07,0.00038082,7]
[314043916,1707945077839,-500.0,0.00038082,7]
[314043917,1707945077849,-500.0,0.00038082,7]
[314043918,1707945077859,-500.0,0.00038082,7]
[314043919,1707945077868,-1264.88,0.00038082,7]
[314043920,1707945077879,-4521.24,0.00038082,7]
[314043921,1707945077889,-791.66,0.00038082,7]
[314043922,1707945077898,-4808.1,0.00038082,7]
[314043923,1707945077907,-500.0,0.00038082,7]
[314043924,1707945077916,-500.0,0.00038082,7]
[314043925,1707945077925,-1751.89,0.00038082,7]
[314043926,1707945077935,-660.03,0.00038082,7]
[314043927,1707945077944,-500.0,0.00038082,7]
[314043928,1707945077956,-665.94,0.00038082,7]
[314043929,1707945077967,-1411.1,0.00038082,7]
[314043930,1707945077976,-720.52,0.00038082,7]
[314043931,1707945077986,-1028.68,0.00038082,7]
[314043932,1707945077997,-1101.95,0.00038082,7]
[314043933,1707945078008,-633.08,0.00038082,7]
[314043934,1707945078018,-679.4,0.00038082,7]
[314043935,1707945078028,-1588.43,0.00038082,7]
[314043936,1707945078040,-859.31,0.00038082,7]
[314043937,1707945078050,-570.05,0.00038082,7]
[314043938,1707945078061,-2455.03,0.00038082,7]
[314043939,1707945078072,-500.0,0.00038082,7]
[314043940,1707945078082,-500.0,0.00038082,7]
[314043941,1707945078092,-500.0,0.00038082,7]
[314043942,1707945078102,-6828.37,0.00038082,7]
[314043943,1707945078112,-7718.39,0.00038082,7]
[314043944,1707945078121,-500.0,0.00038082,7]
[314043945,1707945078131,-500.0,0.00038082,7]
[314043946,1707945078142,-500.0,0.00038082,7]
[314043947,1707945078151,-500.0,0.00038082,7]
[314043948,1707945078162,-730.4,0.00038082,7]
[314043949,1707945078171,-1547.02,0.00038082,7]
[314043950,1707945078182,-1211.6,0.00038082,7]
[314043951,1707945078192,-592.22,0.00038082,7]
[314043952,1707945078202,-1187.29,0.00038082,7]
[314043953,1707945078212,-6862.69,0.00038082,7]
[314043954,1707945078223,-500.0,0.00038082,7]
[314043955,1707945078233,-1752.35,0.00038082,7]
[314043956,1707945078242,-500.0,0.00038082,7]
[314043957,1707945078252,-551.53,0.00038082,7]
[314043958,1707945078262,-565.71,0.00038082,7]
[314043959,1707945078273,-500.0,0.00038082,7]
[314043960,1707945078283,-828.25,0.00038082,7]
[314043961,1707945078293,-500.0,0.00038082,7]
[314043962,1707945078304,-500.0,0.00038082,7]
[314043963,1707945078313,-865.42,0.00038082,7]
[314043964,1707945078323,-5366.99,0.00038082,7]
[314043965,1707945078334,-1003.79,0.00038082,7]
[314043966,1707945078344,-1623.54,0.00038082,7]
[314043967,1707945078353,-1200.22,0.00038082,7]
[314043968,1707945078366,-558.49,0.00038082,7]
[314043969,1707945078376,-500.0,0.00038082,7]
[314043970,1707945078386,-1014.56,0.00038082,7]
[314043971,1707945078396,-995.34,0.00038082,7]
[314043972,1707945078405,-746.35,0.00038082,7]
[314043973,1707945078415,-501.11,0.00038082,7]
[314043974,1707945078427,-1044.44,0.00038082,7]
[314043975,1707945078436,-1716.87,0.00038082,7]
[314043976,1707945078446,-1848.23,0.00038082,7]
[314043977,1707945078457,-587.47,0.00038082,7]
[314043978,1707945078466,-1168.36,0.00038082,7]
[314043979,1707945078476,-2233.44,0.00038082,7]
[314043980,1707945078486,-500.0,0.00038082,7]
[314043981,1707945078496,-983.47,0.00038082,7]
[314043982,1707945078505,-580.91,0.00038082,7]
[314043983,1707945078514,-826.29,0.00038082,7]
[314043984,1707945078526,-250.0,0.00038082,7]
[314043985,1707945078536,-972.52,0.00038082,7]
[314043986,1707945078546,-898.19,0.00038082,7]
[314043987,1707945078555,-500.0,0.00038082,7]
[314043988,1707945078564,-500.0,0.00038082,7]
[314043989,1707945078573,-2032.9,0.00038082,7]
[314043990,1707945078582,-7693.98,0.00038082,7]
[314043991,1707945078592,-500.0,0.00038082,7]
[314043992,1707945078601,-500.0,0.00038082,7]
[314043993,1707945078611,-647.49,0.00038082,7]
[314043994,1707945078622,-551.52,0.00038082,7]
[314043995,1707945078631,-778.33,0.00038082,7]
[314043996,1707945078640,-500.0,0.00038082,7]
[314043997,1707945078650,-500.0,0.00038082,7]
[314043998,1707945078659,-3552.29,0.00038082,7]
[314043999,1707945078668,-424.81712261,0.00038082,7]
[314044000,1707945078677,-630.27,0.00038082,7]
[314044001,1707945078686,-3310.79,0.00038082,7]
[314044002,1707945078695,-569.11,0.00038082,7]
[314044003,1707945078704,-500.0,0.00038082,7]
[314044004,1707945078714,-500.0,0.00038082,7]
[314044005,1707945078723,-1313.58,0.00038082,7]
[314044006,1707945078733,-500.0,0.00038082,7]
[314044007,1707945078742,-1923.0,0.00038102,20]
[314044008,1707945078751,-396.0,0.00038102,20]
[314044009,1707945078760,-500.0,0.00038112,2]
[314044010,1707945078769,-150.0,0.0003813,2]
[314044011,1707945078778,-150.0,0.0003813,2]
[314044012,1707945078787,-49438.89526784,0.00038135,2]
[314044013,1707945078796,-151.021419,0.00038148,19]
[314044014,1707945078805,-333.021519,0.00038148,19]
[314044015,1707945078814,-1796.97,0.00038154,2]
[314044016,1707945078824,-275.5,0.000382,2]
[314044017,1707945078834,-1517.90733,0.000382,2]
[314044018,1707945078843,-347.36,0.00038234,2]
[314044019,1707945078852,-151.02152,0.00038248,19]
[314044020,1707945078861,-500.0,0.00038258,2]
[314044021,1707945078872,-156.0,0.000383,12]
[314044022,1707945078881,-1000.0,0.000383,7]
[314044023,1707945078890,-1788.08,0.00038328,5]
[314044024,1707945078899,-186.47212307,0.00038343,2]
[314044025,1707945078909,-333.02152,0.00038348,20]
[314044026,1707945078918,-8096.0,0.00038352,2]
[314044027,1707945078927,-150.0,0.00038356,15]
[314044028,1707945078936,-150.0,0.00038356,15]
[314044029,1707945078946,-151.21633467,0.00038356,15]
[314044030,1707945078959,-556.75,0.00038356,7]
[314044031,1707945078968,-586.75,0.00038356,7]
[314044032,1707945078977,-799.09,0.00038356,7]
[314044033,1707945078986,-190.94684563,0.00038356,7]
[314044034,1707945078996,-500.0,0.00038356,7]
[314044035,1707945079005,-899.57,0.00038356,7]
[314044036,1707945079015,-2544.37,0.00038356,7]
[314044037,1707945079026,-647.67,0.00038356,7]
[314044038,1707945079035,-500.0,0.00038356,7]
[314044039,1707945079045,-335.17937018,0.00038356,7]
[314044040,1707945079054,-558.18,0.00038356,7]
[314044041,1707945079063,-376.64114415,0.00038356,7]
[314044042,1707945079072,-694.58,0.00038356,7]
[314044043,1707945079081,-603.37352089,0.00038356,7]
[314044044,1707945079090,-1144.53,0.00038356,7]
[314044045,1707945079099,-500.0,0.00038356,7]
[314044046,1707945079108,-500.0,0.00038356,7]
[314044047,1707945079117,-500.0,0.00038356,7]
[314044048,1707945079127,-500.0,0.00038356,7]
[314044049,1707945079136,-500.0,0.00038356,7]
[314044050,1707945079145,-3424.69,0.00038356,7]
[314044051,1707945079155,-818.43,0.00038356,7]
[314044052,1707945079164,-5392.04,0.00038356,7]
[314044053,1707945079174,-503.92,0.00038356,7]
[314044054,1707945079183,-906.19,0.00038356,7]
[314044055,1707945079192,-549.23,0.00038356,7]
[314044056,1707945079201,-500.0,0.00038356,7]
[314044057,1707945079210,-500.0,0.00038356,7]
[314044058,1707945079220,-822.06,0.00038356,7]
[314044059,1707945079229,-500.0,0.00038356,7]
[314044060,1707945079238,-500.0,0.00038356,7]
[314044061,1707945079247,-3341.45,0.00038356,7]
[314044062,1707945079259,-677.12,0.00038356,7]
[314044063,1707945079268,-500.0,0.00038356,7]
[314044064,1707945079278,-1761.82,0.00038356,7]
[314044065,1707945079287,-609.74,0.00038356,7]
[314044066,1707945079298,-802.92,0.00038356,7]
[314044067,1707945079307,-500.0,0.00038356,7]
[314044068,1707945079317,-500.0,0.00038356,7]
[314044069,1707945079327,-1250.0,0.00038356,2]
[314044070,1707945079337,-13582.07,0.00038356,7]
[314044071,1707945079346,-500.0,0.00038356,7]
[314044072,1707945079355,-500.0,0.00038356,7]
[314044073,1707945079365,-953.89,0.00038356,7]
[314044074,1707945079375,-500.0,0.00038356,7]
[314044075,1707945079384,-258.78,0.00038356,7]
[314044076,1707945079394,-6234.22,0.00038356,7]
[314044077,1707945079404,-586.78,0.00038356,7]
[314044078,1707945079413,-500.0,0.00038356,7]
[314044079,1707945079423,-1606.08,0.00038356,7]
[314044080,1707945079432,-500.0,0.00038356,7]
[314044081,1707945079441,-595.12,0.00038356,7]
[314044082,1707945079451,-500.0,0.00038356,7]
[314044083,1707945079460,-1047.58,0.00038356,7]
[314044084,1707945079469,-681.83,0.00038356,7]
[314044085,1707945079479,-515.63,0.00038356,7]
[314044086,1707945079488,-500.0,0.00038356,7]
[314044087,1707945079497,-1810.87,0.00038356,7]
[314044088,1707945079507,-805.31,0.00038356,7]
[314044089,1707945079640,-603.11,0.00038356,7]
[314044090,1707945079650,-500.0,0.00038356,7]
[314044091,1707945079659,-500.0,0.00038356,7]
[314044092,1707945079669,-513.07,0.00038356,7]
[314044093,1707945079678,-500.0,0.00038356,7]
[314044094,1707945079687,-500.0,0.00038356,7]
[314044095,1707945079696,-841.02,0.00038356,7]
[314044096,1707945079705,-780.8,0.00038356,7]
[314044097,1707945079714,-662.19,0.00038356,7]
[314044098,1707945079724,-1486.64,0.00038356,7]
[314044099,1707945079734,-2858.66,0.00038356,7]
[314044100,1707945079743,-500.0,0.00038356,7]
[314044101,1707945079752,-2047.91,0.00038356,7]
[314044102,1707945079762,-590.33,0.00038356,7]
[314044103,1707945079771,-786.93,0.00038356,7]
[314044104,1707945079780,-640.36363771,0.00038356,7]
[314044105,1707945079789,-1000.0,0.00038356,120]
[314044106,1707945079799,-1000.0,0.00038356,120]
[314044107,1707945079809,-1000.0,0.00038356,120]
[314044108,1707945079818,-1000.0,0.00038356,120]
[314044109,1707945079827,-1000.0,0.00038356,120]
[314044110,1707945079837,-1000.0,0.00038356,120]
[314044111,1707945079846,-1000.0,0.00038356,120]
[314044112,1707945079855,-1000.0,0.00038356,120]
[314044113,1707945079864,-1000.0,0.00038356,120]
[314044114,1707945079874,-577.68,0.00038356,7]
[314044115,1707945079883,-1000.0,0.00038356,120]
[314044116,1707945079893,-1000.0,0.00038356,120]
[314044117,1707945079902,-3628.12,0.00038356,7]
[314044118,1707945079911,-4757.12,0.00038356,7]
[314044119,1707945079921,-598.4,0.00038356,7]
[314044120,1707945079930,-1991.03,0.00038356,7]
[314044121,1707945079940,-612.33,0.00038356,2]
[314044122,1707945079950,-500.0,0.00038356,7]
[314044123,1707945079960,-500.0,0.00038356,7]
[314044124,1707945079969,-617.82,0.00038356,7]
[314044125,1707945079978,-502.43,0.00038356,7]
[314044126,1707945079986,-2139.36,0.00038356,7]
[314044127,1707945079995,-807.41,0.00038356,7]
[314044128,1707945080005,-685.44,0.00038356,7]
[314044129,1707945080014,-500.0,0.00038356,7]
[314044130,1707945080023,-500.0,0.00038356,7]
[314044131,1707945080034,-730.2,0.00038356,7]
[314044132,1707945080043,-2211.07,0.00038356,7]
[314044133,1707945080053,-500.0,0.00038356,7]
[314044134,1707945080063,-711.33,0.00038356,7]
[314044135,1707945080072,-743.99,0.00038356,7]
[314044136,1707945080081,-2294.91,0.00038356,7]
[314044137,1707945080091,-2043.37,0.00038356,7]
[314044138,1707945080100,-500.0,0.00038356,7]
[314044139,1707945080110,-594.55,0.00038356,7]
[314044140,1707945080120,-6637.56,0.00038356,7]
[314044141,1707945080130,-500.0,0.00038356,7]
[314044142,1707945080140,-500.0,0.00038356,7]
[314044143,1707945080150,-500.0,0.00038356,7]
[314044144,1707945080159,-1343.45,0.00038356,7]
[314044145,1707945080169,-1215.55,0.00038356,7]
[314044146,1707945080179,-595.97,0.00038356,7]
[314044147,1707945080188,-500.0,0.00038356,7]
[314044148,1707945080198,-1831.02,0.00038356,7]
[314044149,1707945080208,-1575.34,0.00038356,7]
[314044150,1707945080218,-1240.3,0.00038356,7]
[314044151,1707945080228,-1949.84,0.00038356,7]
[314044152,1707945080238,-500.0,0.00038356,7]
[314044153,1707945080249,-613.22,0.00038356,7]
[314044154,1707945080259,-500.0,0.00038356,7]
[314044155,1707945080270,-1376.91,0.00038356,7]
[314044156,1707945080280,-1838.93,0.00038356,7]
[314044157,1707945080289,-1020.07,0.00038356,7]
[314044158,1707945080299,-500.0,0.00038356,7]
[314044159,1707945080310,-500.0,0.00038356,7]
[314044160,1707945080320,-500.0,0.00038356,7]
[314044161,1707945080329,-1264.88,0.00038356,7]
[314044162,1707945080340,-4521.24,0.00038356,7]
[314044163,1707945080349,-791.66,0.00038356,7]
[314044164,1707945080359,-4808.1,0.00038356,7]
[314044165,1707945080369,-500.0,0.00038356,7]
[314044166,1707945080378,-500.0,0.00038356,7]
[314044167,1707945080388,-1751.89,0.00038356,7]
[314044168,1707945080398,-660.03,0.00038356,7]
[314044169,1707945080407,-500.0,0.00038356,7]
[314044170,1707945080416,-665.94,0.00038356,7]
[314044171,1707945080426,-1411.1,0.00038356,7]
[314044172,1707945080435,-720.52,0.00038356,7]
[314044173,1707945080444,-1028.68,0.00038356,7]
[314044174,1707945080454,-1101.95,0.00038356,7]
[314044175,1707945080464,-633.08,0.00038356,7]
[314044176,1707945080473,-679.4,0.00038356,7]
[314044177,1707945080482,-1588.43,0.00038356,7]
[314044178,1707945080491,-859.31,0.00038356,7]
[314044179,1707945080501,-570.05,0.00038356,7]
[314044180,1707945080511,-2455.03,0.00038356,7]
[314044181,1707945080520,-500.0,0.00038356,7]
[314044182,1707945080529,-500.0,0.00038356,7]
[314044183,1707945080539,-500.0,0.00038356,7]
[314044184,1707945080548,-6828.37,0.00038356,7]
[314044185,1707945080558,-7718.39,0.00038356,7]
[314044186,1707945080567,-500.0,0.00038356,7]
[314044187,1707945080576,-500.0,0.00038356,7]
[314044188,1707945080586,-500.0,0.00038356,7]
[314044189,1707945080595,-500.0,0.00038356,7]
[314044190,1707945080604,-730.4,0.00038356,7]
[314044191,1707945080613,-1547.02,0.00038356,7]
[314044192,1707945080623,-1211.6,0.00038356,7]
[314044193,1707945080632,-592.22,0.00038356,7]
[314044194,1707945080642,-1187.29,0.00038356,7]
[314044195,1707945080651,-500.0,0.00038356,7]
[314044196,1707945080660,-6862.69,0.00038356,7]
[314044197,1707945080670,-1752.35,0.00038356,7]
[314044198,1707945080679,-500.0,0.00038356,7]
[314044199,1707945080688,-551.53,0.00038356,7]
[314044200,1707945080698,-565.71,0.00038356,7]
[314044201,1707945080708,-500.0,0.00038356,7]
[314044202,1707945080717,-828.25,0.00038356,7]
[314044203,1707945080727,-500.0,0.00038356,7]
[314044204,1707945080736,-500.0,0.00038356,7]
[314044205,1707945080745,-865.42,0.00038356,7]
[314044206,1707945080755,-1003.79,0.00038356,7]
[314044207,1707945080764,-5366.99,0.00038356,7]
[314044208,1707945080774,-1623.54,0.00038356,7]
[314044209,1707945080784,-1200.22,0.00038356,7]
[314044210,1707945080794,-558.49,0.00038356,7]
[314044211,1707945080803,-500.0,0.00038356,7]
[314044212,1707945080813,-1014.56,0.00038356,7]
[314044213,1707945080822,-995.34,0.00038356,7]
[314044214,1707945080832,-746.35,0.00038356,7]
[314044215,1707945080841,-501.11,0.00038356,7]
[314044216,1707945080851,-1044.44,0.00038356,7]
[314044217,1707945080860,-1716.87,0.00038356,7]
[314044218,1707945080870,-1848.23,0.00038356,7]
[314044219,1707945080880,-587.47,0.00038356,7]
[314044220,1707945080890,-1168.36,0.00038356,7]
[314044221,1707945080899,-2233.44,0.00038356,7]
[314044222,1707945080909,-500.0,0.00038356,7]
[314044223,1707945080918,-983.47,0.00038356,7]
[314044224,1707945080927,-580.91,0.00038356,7]
[314044225,1707945080936,-826.29,0.00038356,7]
[314044226,1707945080947,-250.0,0.00038356,7]
[314044227,1707945080958,-972.52,0.00038356,7]
[314044228,1707945080967,-898.19,0.00038356,7]
[314044229,1707945080977,-500.0,0.00038356,7]
[314044230,1707945080986,-500.0,0.00038356,7]
[314044231,1707945080996,-2032.9,0.00038356,7]
[314044232,1707945081005,-7693.98,0.00038356,7]
[314044233,1707945081014,-500.0,0.00038356,7]
[314044234,1707945081023,-500.0,0.00038356,7]
[314044235,1707945081035,-647.49,0.00038356,7]
[314044236,1707945081044,-551.52,0.00038356,7]
[314044237,1707945081053,-778.33,0.00038356,7]
[314044238,1707945081063,-500.0,0.00038356,7]
[314044239,1707945081073,-500.0,0.00038356,7]
[314044240,1707945081082,-3552.29,0.00038356,7]
[314044241,1707945081091,-630.27,0.00038356,7]
[314044242,1707945081101,-3310.79,0.00038356,7]
[314044243,1707945081110,-569.11,0.00038356,7]
[314044244,1707945081120,-500.0,0.00038356,7]
[314044245,1707945081130,-500.0,0.00038356,7]
[314044246,1707945081139,-1313.58,0.00038356,7]
[314044247,1707945081148,-500.0,0.00038356,7]
[314044248,1707945081158,-151.0,0.00038356,2]
[314044249,1707945081167,-151.0,0.00038356,2]
[314044250,1707945081177,-296.0,0.00038356,2]
[314044251,1707945081186,-151.0,0.00038356,7]
[314044252,1707945081196,-151.0,0.00038356,7]
[314044253,1707945081205,-151.0,0.00038356,7]
[314044254,1707945081215,-151.0,0.00038356,7]
[314044255,1707945081225,-151.0,0.00038356,7]
[314044256,1707945081234,-151.0,0.00038356,7]
[314044257,1707945081244,-261.90082,0.00038356,7]
[314044258,1707945081254,-151.0,0.00038356,7]
[314044259,1707945081263,-151.0,0.00038356,7]
[314044260,1707945081273,-151.0,0.00038356,7]
[314044261,1707945081283,-151.0,0.00038356,7]
[314044262,1707945081293,-201.150463,0.00038356,7]
[314044263,1707945081303,-224.913742,0.00038356,2]
[314044264,1707945081313,-224.913742,0.00038356,2]
[314044265,1707945081323,-224.913742,0.00038356,2]
[314044266,1707945081333,-224.913742,0.00038356,2]
[314044267,1707945081343,-224.913742,0.00038356,2]
[314044268,1707945081352,-224.913742,0.00038356,2]
[314044269,1707945081362,-224.913742,0.00038356,2]
[314044270,1707945081371,-224.913742,0.00038356,2]
[314044271,1707945081382,-224.913742,0.00038356,2]
[314044272,1707945081391,-224.913742,0.00038356,2]
[314044273,1707945081401,-224.913742,0.00038356,2]
[314044274,1707945081411,-224.913742,0.00038356,2]
[314044275,1707945081421,-224.913742,0.00038356,2]
[314044276,1707945081430,-224.913742,0.00038356,2]
[314044277,1707945081439,-224.913742,0.00038356,2]
[314044278,1707945081448,-224.913742,0.00038356,2]
[314044279,1707945081457,-224.913742,0.00038356,2]
[314044280,1707945081466,-224.913742,0.00038356,2]
[314044281,1707945081476,-224.913742,0.00038356,2]
[314044282,1707945081486,-224.913744,0.00038356,2]
[314044283,1707945081495,-279.934795,0.00038356,7]
[314044284,1707945081505,-150.28,0.00038356,2]
[314044285,1707945081514,-150.0,0.0003836,2]
[314044286,1707945081524,-150.0,0.0003836,2]
[314044287,1707945081533,-651.282159,0.00038396,2]
[314044288,1707945081542,-816.874501,0.00038396,2]
[314044289,1707945081551,-677.786138,0.00038396,2]
[314044290,1707945081561,-2281.099806,0.00038396,2]
[314044291,1707945081570,-285.499401,0.00038396,2]
[314044292,1707945081579,-2281.099807,0.00038396,2]
[314044293,1707945081588,-285.499402,0.00038396,2]
[314044294,1707945081597,-2281.099806,0.00038396,2]
[314044295,1707945081607,-285.499401,0.00038396,2]
[314044296,1707945081617,-2281.099806,0.00038396,2]
[314044297,1707945081626,-285.499401,0.00038396,2]
[314044298,1707945081635,-2348.35,0.000384,7]
[314044299,1707945081645,-2404.89,0.000384,7]
[314044300,1707945081655,-3939.34,0.000384,30]
[314044301,1707945081785,-500.0,0.00038405,2]
[314044302,1707945081795,-347.36,0.00038428,2]
[314044303,1707945081806,-34080.402826,0.0003843,2]
[314044304,1707945081815,-5605.3567545,0.0003843,2]
[314044305,1707945081824,-302.0258,0.00038448,16]
[314044306,1707945081834,-333.02152,0.00038448,20]
[314044307,1707945081844,-14406.399495,0.00038456,2]
[314044308,1707945081854,-13344.0388172,0.00038456,2]
[314044309,1707945081864,-12281.6781394,0.00038456,2]
[314044310,1707945081874,-3158.2975107,0.00038456,2]
[314044311,1707945081883,-3657.0066855,0.00038456,2]
[314044312,1707945081892,-4155.7158603,0.00038456,2]
[314044313,1707945081901,-39371.5161337,0.00038463,2]
[314044314,1707945081911,-44662.6294414,0.00038463,2]
[314044315,1707945081921,-175.1045343,0.00038489,30]
[314044316,1707945081930,-5171.66198934,0.00038489,7]
[314044317,1707945081940,-14552.18954454,0.00038489,2]
[314044318,1707945081952,-1027.92592607,0.00038489,2]
[314044319,1707945081962,-36987.3536278,0.00038489,7]
[314044320,1707945081973,-12342.06736928,0.00038489,2]
[314044321,1707945081983,-1847.73059173,0.00038489,2]
[314044322,1707945081993,-3005.09502154,0.00038489,2]
[314044323,1707945082002,-643.0,0.00038489,2]
[314044324,1707945082012,-932.91964296,0.00038489,2]
[314044325,1707945082022,-10807.24930023,0.00038489,2]
[314044326,1707945082034,-8451.58826676,0.00038489,2]
[314044327,1707945082044,-551.03319901,0.00038489,2]
[314044328,1707945082053,-767.40051036,0.00038489,2]
[314044329,1707945082062,-1500.0,0.00038489,4]
[314044330,1707945082072,-3649.80265344,0.00038489,7]
[314044331,1707945082081,-242.41435492,0.00038489,7]
[314044332,1707945082090,-360.15782231,0.00038489,7]
[314044333,1707945082099,-1089164.2141,0.00038489,7]
[314044334,1707945082109,-7700.0,0.00038489,120]
[314044335,1707945082118,-50000.0,0.00038489,15]
[314044336,1707945082128,-50000.0,0.00038489,16]
[314044337,1707945082137,-50000.0,0.00038489,17]
[314044338,1707945082146,-50000.0,0.00038489,18]
[314044339,1707945082155,-50000.0,0.00038489,19]
[314044340,1707945082165,-558.97571839,0.00038489,2]
[314044341,1707945082174,-154.999999,0.00038489,2]
[314044342,1707945082183,-154.999999,0.00038489,2]
[314044343,1707945082192,-155.19156151,0.00038489,2]
[314044344,1707945082201,-154.999999,0.00038489,2]
[314044345,1707945082211,-4592.62457954,0.00038489,4]
[314044346,1707945082220,-155.0,0.00038489,2]
[314044347,1707945082229,-135000.0,0.00038489,5]